bitfinex/quotes_BTCUSD_20250124
["timestamp","ask_amount","ask_price","bid_price","bid_amount"]
[1737718939503,1.97479633,105250.0,105240.0,0.0020161]
[1737718939718,1.97479633,105250.0,105240.0,0.0030161]
[1737718950110,2.01281633,105250.0,105240.0,0.0030161]
[1737718953402,0.44480456,105250.0,105240.0,0.0030161]
[1737718953953,0.51281633,105250.0,105240.0,0.0030161]
[1737718959682,2.01281633,105250.0,105240.0,0.0030161]
[1737718962295,0.51281633,105250.0,105240.0,0.0030161]
[1737718965958,0.44480456,105250.0,105240.0,0.0030161]
[1737718966162,1.94480456,105250.0,105240.0,0.0030161]
[1737718966364,1.89963031,105250.0,105240.0,0.0030161]
[1737718966568,1.90092218,105250.0,105240.0,0.0030161]
[1737718966773,1.89998818,105250.0,105240.0,0.0030161]
[1737718966996,1.90092218,105250.0,105240.0,0.0030161]
[1737718967394,1.90058665,105250.0,105240.0,0.0030161]
[1737718968022,1.89965265,105250.0,105240.0,0.0030161]
[1737718969009,1.96766442,105250.0,105240.0,0.0030161]
[1737718970163,1.96799132,105250.0,105240.0,0.0030161]
[1737718974385,1.97189284,105250.0,105240.0,0.0030161]
[1737718981504,0.47189284,105250.0,105240.0,0.0030161]
[1737718982289,0.46771391,105250.0,105240.0,0.0030161]
[1737718985618,1.96771391,105250.0,105240.0,0.0030161]
[1737718988505,0.46771391,105250.0,105240.0,0.0030161]
[1737718988901,1.96771391,105250.0,105240.0,0.0030161]
[1737718990382,0.46771391,105250.0,105240.0,0.0030161]
[1737718990895,1.96771391,105250.0,105240.0,0.0030161]
[1737718995334,0.60832568,105250.0,105240.0,0.0030161]
[1737718996622,0.60832568,105250.0,105240.0,0.0020161]
[1737718996775,0.61332568,105250.0,105240.0,0.0020161]
[1737718998559,0.69859805,105250.0,105240.0,0.0020161]
[1737719011952,0.69703035,105250.0,105240.0,0.0020161]
[1737719012174,0.69796857,105250.0,105240.0,0.0020161]
[1737719014722,0.79796857,105250.0,105240.0,0.0020161]
[1737719015072,0.69796857,105250.0,105240.0,0.0020161]
[1737719024803,0.79796857,105250.0,105240.0,0.0020161]
[1737719025011,0.64836857,105250.0,105240.0,0.0020161]
[1737719029924,0.5573568,105250.0,105240.0,0.0020161]
[1737719031041,0.62536857,105250.0,105240.0,0.0020161]
[1737719037634,0.5573568,105250.0,105240.0,0.0020161]
[1737719037834,0.62536857,105250.0,105240.0,0.0020161]
[1737719038954,0.5573568,105250.0,105240.0,0.0020161]
[1737719042154,0.62536857,105250.0,105240.0,0.0020161]
[1737719043382,0.5573568,105250.0,105240.0,0.0020161]
[1737719043844,0.62536857,105250.0,105240.0,0.0020161]
[1737719046063,0.64836857,105250.0,105240.0,0.0020161]
[1737719066068,0.64958417,105250.0,105240.0,0.0020161]
[1737719066841,0.64664984,105250.0,105240.0,0.0020161]
[1737719067078,0.64730541,105250.0,105240.0,0.0020161]
[1737719068538,0.57929364,105250.0,105240.0,0.0020161]
[1737719069972,0.55629364,105250.0,105240.0,0.0020161]
[1737719090839,0.55584104,105250.0,105240.0,0.0020161]
[1737719091247,0.41162927,105250.0,105240.0,0.0020161]
[1737719091404,0.47964104,105250.0,105240.0,0.0020161]
[1737719092203,0.48376673,105250.0,105240.0,0.0020161]
[1737719093009,0.39849436,105250.0,105240.0,0.0020161]
[1737719096382,0.39942836,105250.0,105240.0,0.0020161]
[1737719097179,0.39849436,105250.0,105240.0,0.0020161]
[1737719097890,0.33048259,105250.0,105240.0,0.0020161]
[1737719098099,0.33141659,105250.0,105240.0,0.0020161]
[1737719098560,0.31285473,105250.0,105240.0,0.0020161]
[1737719100320,0.31192073,105250.0,105240.0,0.0020161]
[1737719101196,0.3799325,105250.0,105240.0,0.0020161]
[1737719101408,0.31192073,105250.0,105240.0,0.0020161]
[1737719101632,0.3799325,105250.0,105240.0,0.0020161]
[1737719101872,0.45304426,105250.0,105240.0,0.0020161]
[1737719103123,1.95304426,105250.0,105240.0,0.0020161]
[1737719103551,0.45304426,105250.0,105240.0,0.0020161]
[1737719104141,1.95304426,105250.0,105240.0,0.0020161]
[1737719109078,1.95512515,105250.0,105240.0,0.0020161]
[1737719109291,1.95305045,105250.0,105240.0,0.0020161]
[1737719114186,1.95117635,105250.0,105240.0,0.000142]
[1737719116315,1.88316458,105250.0,105240.0,0.000142]
[1737719118513,1.88316458,105250.0,105240.0,0.001646]
[1737719119901,1.95117635,105250.0,105240.0,0.001646]
[1737719121389,1.95147456,105250.0,105240.0,0.001646]
[1737719122780,1.88346279,105250.0,105240.0,0.001646]
[1737719123172,1.88157844,105250.0,105240.0,0.001646]
[1737719130411,0.38157844,105250.0,105240.0,0.001646]
[1737719133025,0.44959021,105250.0,105240.0,0.001646]
[1737719134200,0.38157844,105250.0,105240.0,0.001646]
[1737719134402,1.88157844,105250.0,105240.0,0.001646]
[1737719137652,0.38157844,105250.0,105240.0,0.001646]
[1737719138416,0.34355844,105250.0,105240.0,0.001646]
[1737719138823,0.34287807,105250.0,105240.0,0.001646]
[1737719143767,1.84287807,105250.0,105240.0,0.001646]
[1737719146571,1.8415862,105250.0,105240.0,0.001646]
[1737719146784,0.34320579,105250.0,105240.0,0.001646]
[1737719148701,0.08534562,105250.0,105240.0,0.096666]
[1737719149617,0.00921162,105250.0,105240.0,0.096666]
[1737719149876,0.00421162,105250.0,105240.0,0.146166]
[1737719150048,0.00588472,105250.0,105240.0,0.146166]
[1737719150219,0.00888472,105250.0,105240.0,0.146166]
[1737719151975,0.00688472,105250.0,105240.0,0.146166]
[1737719152162,0.00388472,105250.0,105240.0,0.146166]
[1737719152387,0.00388472,105250.0,105240.0,0.147166]
[1737719152571,0.00488472,105250.0,105240.0,0.147166]
[1737719152949,0.00542592,105250.0,105240.0,0.147166]
[1737719153152,0.00542592,105250.0,105240.0,0.15645982]
[1737719153363,0.00642592,105250.0,105240.0,0.15645982]
[1737719156197,0.00542592,105250.0,105240.0,0.15645982]
[1737719156665,0.00542592,105250.0,105240.0,0.15545982]
[1737719157009,0.00542592,105250.0,105240.0,0.25380711]
[1737719157694,0.00542592,105250.0,105240.0,0.26287311]
[1737719158329,0.00542592,105250.0,105240.0,0.26187311]
[1737719158541,0.00542592,105250.0,105240.0,0.26287311]
[1737719159298,0.00542592,105250.0,105240.0,0.26187311]
[1737719159566,0.00542592,105250.0,105240.0,0.26287311]
[1737719161509,0.00542592,105250.0,105240.0,0.25380711]
[1737719161758,0.07343769,105250.0,105240.0,0.15645982]
[1737719161939,0.00542592,105250.0,105240.0,0.10695982]
[1737719162566,0.33272592,105250.0,105240.0,0.10695982]
[1737719162982,0.33272592,105250.0,105240.0,0.096666]
[1737719163149,0.33272592,105250.0,105240.0,0.097666]
[1737719174936,0.40892592,105250.0,105240.0,0.097666]
[1737719176209,0.15057169,105250.0,105240.0,0.097666]
[1737719176415,0.17757092,105250.0,105240.0,0.002646]
[1737719176623,0.27491821,105250.0,105240.0,0.002646]
[1737719176803,0.27491821,105250.0,105240.0,0.097666]
[1737719176804,0.34292998,105250.0,105240.0,0.097666]
[1737719177004,0.27491821,105250.0,105240.0,0.097666]
[1737719177457,0.08162592,105250.0,105240.0,0.097666]
[1737719178895,0.17663692,105250.0,105240.0,0.097666]
[1737719179437,0.08162592,105250.0,105240.0,0.097666]
[1737719180357,0.07962592,105250.0,105240.0,0.097666]
[1737719180516,0.17683432,105250.0,105240.0,0.097666]
[1737719180943,0.08182332,105250.0,105240.0,0.097666]
[1737719181712,0.17683432,105250.0,105240.0,0.097666]
[1737719181915,0.17683432,105250.0,105240.0,0.247666]
[1737719182114,0.08182332,105250.0,105240.0,0.247666]
[1737719184193,0.08363843,105250.0,105240.0,0.247666]
[1737719189136,0.0832268,105250.0,105240.0,0.247666]
[1737719189779,0.0070268,105250.0,105240.0,0.247666]
[1737719189977,0.00732501,105250.0,105240.0,0.247666]
[1737719191568,0.00431072,105250.0,105240.0,0.247666]
[1737719191780,0.144935,105270.0,105260.0,0.245002]
[1737719191983,0.43227029,105270.0,105260.0,0.245002]
[1737719192904,0.43133629,105270.0,105260.0,0.245002]
[1737719193128,0.24234829,105270.0,105260.0,0.245002]
[1737719193330,0.24234829,105270.0,105260.0,0.246002]
[1737719193680,0.24328229,105270.0,105260.0,0.246002]
[1737719194072,0.24234829,105270.0,105260.0,0.246002]
[1737719194507,0.24328229,105270.0,105260.0,0.246002]
[1737719194643,0.32148229,105270.0,105260.0,0.246002]
[1737719195053,0.32054829,105270.0,105260.0,0.25348026]
[1737719195254,0.32148229,105270.0,105260.0,0.25348026]
[1737719195677,0.1242,105270.0,105260.0,0.25348026]
[1737719195882,0.0792,105270.0,105260.0,0.25348026]
[1737719196092,0.080134,105270.0,105260.0,0.25348026]
[1737719196708,0.08553866,105270.0,105260.0,0.25348026]
[1737719197464,0.08553866,105270.0,105260.0,0.246002]
[1737719199327,0.08460466,105270.0,105260.0,0.246002]
[1737719199723,0.08553866,105270.0,105260.0,0.246002]
[1737719200088,0.08460466,105270.0,105260.0,0.246002]
[1737719200695,0.08553866,105270.0,105260.0,0.246002]
[1737719202097,0.08460466,105270.0,105260.0,0.246002]
[1737719202302,0.08583687,105270.0,105260.0,0.246002]
[1737719203624,0.08490287,105270.0,105260.0,0.246002]
[1737719204125,0.00670287,105270.0,105260.0,0.246002]
[1737719204651,0.00670287,105270.0,105260.0,0.096002]
[1737719205348,1.9702061,105290.0,105270.0,0.474946]
[1737719205558,2.06755339,105290.0,105270.0,0.474946]
[1737719206321,1.87759339,105290.0,105270.0,0.664924]
[1737719206533,1.86783881,105290.0,105270.0,0.664924]
[1737719206791,1.86783881,105290.0,105280.0,0.094984]
[1737719207432,1.86783881,105290.0,105270.0,0.47494]
[1737719207651,1.86983881,105290.0,105270.0,0.664918]
[1737719208116,1.86988787,105290.0,105270.0,0.664918]
[1737719208344,0.0762,105280.0,105270.0,0.284962]
[1737719209230,0.0762,105280.0,105270.0,0.285962]
[1737719209452,0.0762,105280.0,105270.0,0.284962]
[1737719209940,0.0762,105280.0,105270.0,0.285962]
[1737719211273,0.0622,105280.0,105270.0,0.285962]
[1737719211592,0.0632,105280.0,105270.0,0.285962]
[1737719212819,0.06770821,105280.0,105270.0,0.285962]
[1737719213982,0.16269221,105280.0,105270.0,0.285962]
[1737719217151,0.06770821,105280.0,105270.0,0.285962]
[1737719221895,0.16269221,105280.0,105270.0,0.001]
[1737719222900,0.2600395,105280.0,105270.0,0.001]
[1737719223140,0.1650555,105280.0,105270.0,0.095993]
[1737719223367,0.2600395,105280.0,105270.0,0.095993]
[1737719224029,0.1650555,105280.0,105270.0,0.095993]
[1737719225567,0.1650555,105280.0,105270.0,0.096135]
[1737719225778,0.16535371,105280.0,105270.0,0.096135]
[1737719226532,0.00029821,105280.0,105270.0,0.096135]
[1737719231004,0.00029821,105280.0,105270.0,0.27378229]
[1737719231296,0.00029821,105280.0,105270.0,0.32238229]
[1737719232143,0.00029821,105280.0,105270.0,0.32138229]
[1737719232355,0.00029821,105280.0,105270.0,0.095135]
[1737719232591,0.06830998,105280.0,105270.0,0.096135]
[1737719232716,0.14890998,105280.0,105270.0,0.096135]
[1737719232941,1.64890998,105280.0,105270.0,0.096135]
[1737719233312,1.58089821,105280.0,105270.0,0.096135]
[1737719234968,0.08089821,105280.0,105270.0,0.096135]
[1737719239242,0.00029821,105280.0,105270.0,0.171435]
[1737719241256,0.00029821,105280.0,105270.0,0.096135]
[1737719243236,1.50029821,105280.0,105270.0,0.096135]
[1737719243440,1.64490998,105280.0,105270.0,0.096135]
[1737719243818,1.73989398,105280.0,105270.0,0.096135]
[1737719244031,1.64490998,105280.0,105270.0,0.096135]
[1737719245036,1.57689821,105280.0,105270.0,0.096135]
[1737719250436,0.00029821,105280.0,105270.0,0.096135]
[1737719250689,0.00029821,105280.0,105270.0,0.178235]
[1737719251608,0.00029821,105280.0,105270.0,0.226135]
[1737719254997,0.00029821,105280.0,105270.0,0.23587581]
[1737719264810,0.00029821,105280.0,105270.0,0.38587581]
[1737719265392,0.00029821,105280.0,105270.0,0.4832231]
[1737719269836,0.00029821,105280.0,105270.0,0.3332231]
[1737719282428,0.00029821,105280.0,105270.0,0.2853231]
[1737719284776,0.00652896,105280.0,105270.0,0.2853231]
[1737719286346,0.00652896,105280.0,105270.0,0.2032231]
[1737719294284,0.1174959,105300.0,105270.0,0.1082301]
[1737719294531,0.1174959,105300.0,105290.0,0.094975]
[1737719295270,1.6174959,105300.0,105290.0,0.094975]
[1737719296776,1.6194959,105300.0,105290.0,0.094975]
[1737719297465,1.7046959,105300.0,105290.0,0.094975]
[1737719297957,1.7006959,105300.0,105290.0,0.094975]
[1737719298205,1.7016959,105300.0,105290.0,0.094975]
[1737719298447,1.7016959,105300.0,105290.0,0.095975]
[1737719298970,1.70199411,105300.0,105290.0,0.095975]
[1737719303708,0.11879411,105300.0,105290.0,0.095975]
[1737719303908,0.00129821,105300.0,105290.0,0.178475]
[1737719304373,0.06949411,105300.0,105290.0,0.095975]
[1737719304592,0.00129821,105300.0,105290.0,0.095975]
[1737719307741,1.50129821,105300.0,105290.0,0.095975]
[1737719310495,1.50129821,105300.0,105290.0,0.096117]
[1737719313455,1.58009821,105300.0,105290.0,0.001142]
[1737719313667,1.58009821,105300.0,105290.0,0.096117]
[1737719316648,0.0788,105300.0,105290.0,0.096117]
[1737719316992,0.0788,105300.0,105290.0,0.001142]
[1737719317207,0.0788,105300.0,105290.0,0.096117]
[1737719317874,0.54390099,105300.0,105290.0,0.001142]
[1737719318313,0.55390099,105300.0,105290.0,0.001142]
[1737719318528,0.47570509,105300.0,105290.0,0.001142]
[1737719319456,0.55390099,105300.0,105290.0,0.001142]
[1737719319666,0.55590099,105300.0,105290.0,0.001142]
[1737719319885,0.48770509,105300.0,105290.0,0.000142]
[1737719320096,0.61286099,105300.0,105290.0,0.000142]
[1737719320281,0.55590099,105300.0,105290.0,0.000142]
[1737719320434,0.55690099,105300.0,105290.0,0.000142]
[1737719320640,0.57573789,105300.0,105290.0,0.000142]
[1737719320983,0.58173789,105300.0,105290.0,0.001142]
[1737719322307,0.5820361,105300.0,105290.0,0.001142]
[1737719322767,0.5138402,105300.0,105290.0,0.001142]
[1737719322923,1.3884402,105300.0,105290.0,0.001142]
[1737719327268,1.4566361,105300.0,105290.0,0.001142]
[1737719331491,0.4350361,105300.0,105290.0,0.001142]
[1737719331493,0.02813511,105300.0,105290.0,0.001142]
[1737719331689,0.02813511,105300.0,105290.0,0.246117]
[1737719331690,0.00929821,105300.0,105290.0,0.246117]
[1737719331893,0.10426421,105300.0,105290.0,0.151142]
[1737719332093,0.2698074,105300.0,105290.0,0.151142]
[1737719332496,0.2016115,105300.0,105290.0,0.151142]
[1737719333056,0.2668074,105300.0,105290.0,0.246117]
[1737719333240,0.2618074,105300.0,105290.0,0.245117]
[1737719333439,0.1936115,105300.0,105290.0,0.245117]
[1737719333650,0.1936115,105300.0,105290.0,0.151142]
[1737719334479,0.1926115,105300.0,105290.0,0.151142]
[1737719334804,0.1936115,105300.0,105290.0,0.151142]
[1737719338973,0.2975243,105300.0,105290.0,0.151142]
[1737719339690,1.7975243,105300.0,105290.0,0.151142]
[1737719343830,0.2975243,105300.0,105290.0,0.151142]
[1737719344344,0.30689244,105300.0,105290.0,0.151142]
[1737719352742,0.32573393,105300.0,105290.0,0.151142]
[1737719354916,0.42964673,105300.0,105290.0,0.151142]
[1737719355870,0.35825805,105300.0,105290.0,0.151142]
[1737719356282,0.33941656,105300.0,105290.0,0.151142]
[1737719357013,0.33004842,105300.0,105290.0,0.151142]
[1737719358535,0.26182996,105300.0,105290.0,0.151142]
[1737719358964,0.16448267,105300.0,105290.0,0.151142]
[1737719359172,0.16448267,105300.0,105290.0,0.227842]
[1737719359998,2.0795084,105310.0,105290.0,0.227842]
[1737719360176,0.06821846,105300.0,105290.0,0.227842]
[1737719360412,0.16318446,105300.0,105290.0,0.227842]
[1737719360631,0.16318446,105300.0,105290.0,0.276542]
[1737719360839,0.16318446,105300.0,105290.0,0.275542]
[1737719361261,0.094966,105300.0,105290.0,0.275542]
[1737719361442,0.094966,105300.0,105290.0,0.276542]
[1737719361623,0.094966,105300.0,105290.0,0.275542]
[1737719361841,0.094966,105300.0,105290.0,0.276542]
[1737719362627,1.8895774,105310.0,105290.0,0.294817]
[1737719362832,1.8895774,105310.0,105300.0,0.2318]
[1737719362833,1.78517442,105310.0,105300.0,0.2318]
[1737719363864,1.78617442,105310.0,105300.0,0.2318]
[1737719364011,1.78617442,105310.0,105300.0,0.2328]
[1737719364251,1.78517442,105310.0,105300.0,0.2328]
[1737719364455,1.59596,105310.0,105300.0,0.2328]
[1737719364660,1.785888,105310.0,105300.0,0.2328]
[1737719365480,1.34970478,105310.0,105300.0,0.2328]
[1737719365690,1.34970478,105310.0,105300.0,0.327766]
[1737719365902,0.001,105310.0,105300.0,0.327766]
[1737719366733,1.784864,105320.0,105300.0,0.327766]
[1737719366949,1.784864,105320.0,105300.0,0.245966]
[1737719367161,1.784864,105320.0,105310.0,0.2714]
[1737719367823,1.785864,105320.0,105310.0,0.2714]
[1737719368054,1.595955,105320.0,105310.0,0.2714]
[1737719368260,1.785861,105320.0,105310.0,0.2714]
[1737719368584,1.788861,105320.0,105310.0,0.2714]
[1737719369167,1.787861,105320.0,105310.0,0.2714]
[1737719369387,1.789861,105320.0,105310.0,0.2714]
[1737719369805,1.787861,105320.0,105310.0,0.2714]
[1737719370216,1.788861,105320.0,105310.0,0.2714]
[1737719370425,0.190906,105320.0,105310.0,0.2714]
[1737719370623,0.28595246,105320.0,105310.0,0.1214]
[1737719371044,0.28595246,105320.0,105310.0,0.1224]
[1737719371503,1.78595246,105320.0,105310.0,0.1214]
[1737719371750,0.094962,105310.0,105290.0,0.556894]
[1737719371945,0.094962,105310.0,105290.0,0.556884]
[1737719371946,0.284881,105310.0,105290.0,0.556884]
[1737719372155,0.284881,105310.0,105300.0,0.176866]
[1737719372776,1.594962,105310.0,105300.0,0.176866]
[1737719372978,0.094958,105310.0,105300.0,0.176866]
[1737719373567,0.094958,105310.0,105300.0,0.224066]
[1737719373978,1.97725775,105320.0,105300.0,0.224066]
[1737719374177,1.88221229,105320.0,105300.0,0.413999]
[1737719374396,0.094957,105310.0,105300.0,0.224066]
[1737719374820,2.07211929,105320.0,105300.0,0.414999]
[1737719375238,2.07211929,105320.0,105300.0,0.413999]
[1737719375511,2.07211929,105320.0,105300.0,0.224066]
[1737719375687,2.05329423,105320.0,105300.0,0.224066]
[1737719375893,2.05329423,105320.0,105300.0,0.413998]
[1737719376473,0.3273,105310.0,105300.0,0.413998]
[1737719376696,0.3273,105310.0,105300.0,0.414998]
[1737719376941,0.17629559,105310.0,105300.0,0.414998]
[1737719377330,0.17629559,105310.0,105300.0,0.413998]
[1737719377692,0.17629559,105310.0,105300.0,0.414998]
[1737719391524,0.17629559,105310.0,105300.0,0.41514]
[1737719391922,0.17644298,105310.0,105300.0,0.41514]
[1737719393086,0.17644298,105310.0,105300.0,0.51248729]
[1737719398031,0.00029821,105310.0,105300.0,0.51248729]
[1737719399101,0.00029821,105310.0,105300.0,0.51348729]
[1737719399520,0.00029821,105310.0,105300.0,0.51248729]
[1737719399738,0.00029821,105310.0,105300.0,0.51348729]
[1737719399948,0.00029821,105310.0,105300.0,0.51248729]
[1737719400163,0.00029821,105310.0,105300.0,0.52348729]
[1737719400383,0.17644319,105350.0,105330.0,0.311963]
[1737719400603,0.00039184,105350.0,105340.0,0.26787729]
[1737719400839,0.00039184,105350.0,105340.0,0.31667729]
[1737719401697,0.00039184,105350.0,105340.0,0.34667729]
[1737719402377,0.00039184,105350.0,105340.0,0.34767729]
[1737719404243,0.00039184,105350.0,105340.0,0.35704959]
[1737719405302,0.00029862,105370.0,105350.0,0.157]
[1737719405533,0.0007905,105370.0,105360.0,0.31925929]
[1737719405926,0.00232703,105370.0,105360.0,0.33925929]
[1737719406135,0.00498614,105370.0,105360.0,0.33925929]
[1737719406340,0.00498614,105370.0,105360.0,0.34925929]
[1737719408002,0.00498614,105370.0,105360.0,0.36866027]
[1737719408304,0.00498614,105370.0,105360.0,0.36966027]
[1737719408855,0.00498614,105370.0,105360.0,0.35966027]
[1737719409259,0.0007905,105370.0,105360.0,0.35966027]
[1737719409513,0.00500361,105370.0,105360.0,0.34025929]
[1737719409756,0.00500361,105370.0,105360.0,0.32025929]
[1737719411373,0.00500361,105370.0,105360.0,0.34025929]
[1737719412320,0.00500361,105370.0,105360.0,0.28089857]
[1737719412686,0.00345995,105370.0,105360.0,0.28089857]
[1737719412867,0.0007905,105370.0,105360.0,0.28089857]
[1737719413067,0.00500361,105370.0,105360.0,0.28089857]
[1737719413777,0.00500361,105370.0,105360.0,0.32659857]
[1737719415272,0.00500361,105370.0,105360.0,0.35659857]
[1737719415486,0.00500361,105370.0,105360.0,0.43686914]
[1737719416149,0.00500361,105370.0,105360.0,0.44418914]
[1737719416359,0.00500361,105370.0,105360.0,0.40978891]
[1737719417631,0.00500361,105370.0,105360.0,0.44418914]
[1737719418457,0.00500361,105370.0,105360.0,0.40978891]
[1737719418635,0.00500361,105370.0,105360.0,0.36391857]
[1737719419056,0.00500361,105370.0,105360.0,0.40978891]
[1737719419474,0.00500361,105370.0,105360.0,0.44418914]
[1737719420105,0.00500361,105370.0,105360.0,0.36391857]
[1737719421996,0.00500361,105370.0,105360.0,0.40978891]
[1737719422446,0.00500361,105370.0,105360.0,0.38978891]
[1737719422655,0.00500361,105370.0,105360.0,0.40978891]
[1737719422939,0.00500361,105370.0,105360.0,0.38978891]
[1737719423241,0.00500361,105370.0,105360.0,0.36391857]
[1737719424351,0.00500361,105370.0,105360.0,0.28089857]
[1737719428110,0.00500361,105370.0,105360.0,0.32669857]
[1737719430673,0.00500361,105370.0,105360.0,0.47669857]
[1737719431846,0.01098649,105370.0,105360.0,0.47669857]
[1737719432051,0.00691889,105370.0,105360.0,0.43089857]
[1737719435168,0.00691889,105370.0,105360.0,0.35279857]
[1737719446050,0.00691889,105370.0,105360.0,0.20279857]
[1737719450327,0.00691889,105370.0,105360.0,0.34189857]
[1737719452471,8.9e-07,105370.0,105360.0,0.36189857]
[1737719452692,6.7e-07,105370.0,105360.0,0.36189857]
[1737719452907,3.1e-07,105370.0,105360.0,0.36189857]
[1737719453117,3.7e-07,105370.0,105360.0,0.36189857]
[1737719453293,1.1e-07,105370.0,105360.0,0.36189857]
[1737719453470,1.9e-07,105370.0,105360.0,0.46184857]
[1737719453673,0.00389681,105370.0,105360.0,0.36189857]
[1737719453984,0.00029842,105380.0,105370.0,0.194903]
[1737719454188,0.00029842,105380.0,105370.0,0.29225029]
[1737719456330,0.00029842,105380.0,105370.0,0.29325029]
[1737719460964,0.00029842,105380.0,105370.0,0.27325029]
[1737719462207,0.00029842,105380.0,105370.0,0.29213357]
[1737719463001,0.004441,105380.0,105370.0,0.29213357]
[1737719463425,0.00029842,105380.0,105370.0,0.21213357]
[1737719464315,0.00029842,105380.0,105370.0,0.19325029]
[1737719466563,0.00029842,105380.0,105370.0,0.27844322]
[1737719467741,0.00054777,105380.0,105370.0,0.27844322]
[1737719467941,0.00653067,105380.0,105370.0,0.27844322]
[1737719472634,0.00029842,105380.0,105370.0,0.27844322]
[1737719472898,0.00029842,105380.0,105370.0,0.35678522]
[1737719479304,0.00029842,105380.0,105370.0,0.27159229]
[1737719485582,0.07719842,105380.0,105370.0,0.19339229]
[1737719485789,0.12239842,105380.0,105370.0,0.19339229]
[1737719485999,0.12862226,105380.0,105370.0,0.19339229]
[1737719486825,0.12862226,105380.0,105370.0,0.096045]
[1737719487654,0.12862226,105380.0,105370.0,0.18024799]
[1737719487861,0.12862226,105380.0,105370.0,0.18124799]
[1737719488253,0.22351626,105380.0,105370.0,0.08634499]
[1737719488427,0.21729242,105380.0,105370.0,0.08634499]
[1737719488630,0.21729242,105380.0,105370.0,0.18124799]
[1737719489036,0.21729242,105380.0,105370.0,0.08634499]
[1737719490523,0.21729242,105380.0,105370.0,0.18124799]
[1737719490936,0.21729242,105380.0,105370.0,0.08634499]
[1737719491129,0.21729242,105380.0,105370.0,0.18124799]
[1737719491995,0.21729242,105380.0,105370.0,0.096045]
[1737719493055,0.12239842,105380.0,105370.0,0.096045]
[1737719494108,0.12239842,105380.0,105370.0,0.095045]
[1737719496084,0.12239842,105380.0,105370.0,0.096045]
[1737719503821,0.21729242,105380.0,105370.0,0.096045]
[1737719506301,0.21729242,105380.0,105370.0,0.246045]
[1737719506507,0.12239842,105380.0,105370.0,0.246045]
[1737719508834,0.21729242,105380.0,105370.0,0.246045]
[1737719509040,0.12239842,105380.0,105370.0,0.246045]
[1737719512759,0.21729242,105380.0,105370.0,0.246045]
[1737719513216,0.12239842,105380.0,105370.0,0.246045]
[1737719513932,0.21729242,105380.0,105370.0,0.246045]
[1737719514483,0.12239842,105380.0,105370.0,0.246045]
[1737719514896,0.04549842,105380.0,105370.0,0.246045]
[1737719515087,0.12589842,105380.0,105370.0,0.246045]
[1737719517424,0.13023221,105380.0,105370.0,0.246045]
[1737719522294,0.04983221,105380.0,105370.0,0.246045]
[1737719526371,0.00463221,105380.0,105370.0,0.246045]
[1737719535865,0.00463221,105380.0,105370.0,0.096045]
[1737719537015,0.09952621,105380.0,105370.0,0.096045]
[1737719537216,0.00463221,105380.0,105370.0,0.096045]
[1737719537425,0.09952621,105380.0,105370.0,0.001142]
[1737719537629,0.18182621,105380.0,105370.0,0.001142]
[1737719538983,1.58693221,105380.0,105370.0,0.096045]
[1737719539412,1.68182621,105380.0,105370.0,0.096045]
[1737719539844,1.68373253,105380.0,105370.0,0.096045]
[1737719540538,0.18373253,105380.0,105370.0,0.096045]
[1737719541110,0.08883853,105380.0,105370.0,0.096045]
[1737719541301,0.18373253,105380.0,105370.0,0.001142]
[1737719541524,0.18373253,105380.0,105370.0,0.096045]
[1737719542462,0.18373253,105380.0,105370.0,0.001142]
[1737719543044,0.10143253,105380.0,105370.0,0.001142]
[1737719544027,0.00653853,105380.0,105370.0,0.001142]
[1737719544237,0.00653853,105380.0,105370.0,0.096045]
[1737719546065,0.10143253,105380.0,105370.0,0.001142]
[1737719546336,0.00653853,105380.0,105370.0,0.001142]
[1737719546557,0.10143253,105380.0,105370.0,0.001142]
[1737719546752,0.00653853,105380.0,105370.0,0.096045]
[1737719546894,0.10143253,105380.0,105370.0,0.001142]
[1737719547110,0.00653853,105380.0,105370.0,0.096045]
[1737719547963,0.10143253,105380.0,105370.0,0.001142]
[1737719548096,0.00653853,105380.0,105370.0,0.096045]
[1737719550700,0.10143253,105380.0,105370.0,0.001142]
[1737719550908,0.00653853,105380.0,105370.0,0.096045]
[1737719551050,0.00653853,105380.0,105370.0,0.001142]
[1737719551253,0.10143253,105380.0,105370.0,0.001142]
[1737719551507,0.00653853,105380.0,105370.0,0.096045]
[1737719552091,0.10143253,105380.0,105370.0,0.001142]
[1737719552312,0.10143253,105380.0,105370.0,0.096045]
[1737719552924,0.00653853,105380.0,105370.0,0.096045]
[1737719553129,0.00653853,105380.0,105370.0,0.001142]
[1737719553294,0.10143253,105380.0,105370.0,0.001142]
[1737719553522,0.00653853,105380.0,105370.0,0.001142]
[1737719553756,0.00653853,105380.0,105370.0,0.096045]
[1737719557692,0.00653853,105380.0,105370.0,0.27179229]
[1737719560936,0.00653853,105380.0,105370.0,0.174445]
[1737719561578,1.50653853,105380.0,105370.0,0.174445]
[1737719562774,0.00653853,105380.0,105370.0,0.174445]
[1737719564403,0.10143253,105380.0,105370.0,0.001142]
[1737719564615,0.00653853,105380.0,105370.0,0.096045]
[1737719569811,0.33383853,105380.0,105370.0,0.096045]
[1737719571826,0.42873253,105380.0,105370.0,0.001142]
[1737719572180,0.50683253,105380.0,105370.0,0.001142]
[1737719572735,0.41193853,105380.0,105370.0,0.096045]
[1737719572983,0.33383853,105380.0,105370.0,0.096045]
[1737719573401,0.35313064,105380.0,105370.0,0.096045]
[1737719573822,0.33383853,105380.0,105370.0,0.096045]
[1737719575872,0.00653853,105380.0,105370.0,0.31839229]
[1737719576895,0.00653853,105380.0,105370.0,0.31739229]
[1737719577266,0.00653853,105380.0,105370.0,0.31839229]
[1737719578336,0.00288101,105380.0,105370.0,0.31839229]
[1737719578565,0.00338553,105380.0,105370.0,0.32739229]
[1737719578695,0.00018702,105380.0,105370.0,0.32839229]
[1737719579290,0.00018702,105380.0,105370.0,0.32739229]
[1737719579495,0.00029842,105390.0,105380.0,0.218294]
[1737719579696,0.0004459,105390.0,105380.0,0.32308129]
[1737719581929,0.0004459,105390.0,105380.0,0.32408129]
[1737719582388,0.0004459,105390.0,105380.0,0.34408129]
[1737719583086,0.0004459,105390.0,105380.0,0.42913631]
[1737719583994,0.0004459,105390.0,105380.0,0.40169631]
[1737719584219,0.0004459,105390.0,105380.0,0.35409631]
[1737719584445,0.0004459,105390.0,105380.0,0.18094902]
[1737719584653,0.0004459,105390.0,105380.0,0.27829631]
[1737719585712,0.0004459,105390.0,105380.0,0.27729631]
[1737719586114,0.0004459,105390.0,105380.0,0.27829631]
[1737719586601,0.0004459,105390.0,105380.0,0.27729631]
[1737719586805,0.0004459,105390.0,105380.0,0.27829631]